[Event "VII Lorca Open 2018"]
[Site "Lorca"]
[Date "2018.12.28"]
[Round "4"]
[White "Jimenez Ruano, Adrian"]
[Black "Medarde Santiago, Luis Marcos"]
[Result "0-1"]
[ECO "E90"]
[WhiteElo "2245"]
[BlackElo "2386"]
[Annotator "NA"]
[PlyCount "90"]
[EventDate "2018.12.26"]
[EventType "swiss"]
[EventCountry "ESP"]
[SourceTitle "playchess.com"]
[Source "ChessBase"]
[SourceQuality "1"]
[TimeControl "5400+30"]

1. d4 {[%emt 0:00:00]} Nf6 {[%emt 0:05:16]} 2. c4 {[%emt 0:00:00]} g6 {[%emt 0:00:07]} 3. Nc3 {[%emt 0:00:00]} Bg7 {[%emt 0:00:46]} 4. e4 {[%emt 0:00:00]} d6 {[%emt 0:00:08]} 5. h3 {[%emt 0:00:00]} O-O {[%emt 0:00:33]} 6. Nf3 {[%emt 0:00:02]} e5 {[%emt 0:00:21]} 7. d5 {[%emt 0:00:04]} Nh5 {[%emt 0:00:21]} 8. g3 {[%emt 0:00:06]} Qe8 {[%emt 0:00:11]} 9. Be2 {[%emt 0:01:39]} f5 {[%emt 0:00:15]} 10. exf5 {[%emt 0:11:02]} gxf5 {[%emt 0:00:22]} 11. Ng5 {[%emt 0:10:45]} Nf6 {[%emt 0:00:44]} 12. Be3 {[%emt 0:00:03]} Na6 {[%emt 0:00:54]} 13. Qd2 {[%emt 0:00:03]} Nc5 {[%emt 0:00:40]} 14. O-O-O {[%emt 0:00:15]} h6 {[%emt 0:00:38]} 15. Nf3 {[%emt 0:00:03]} Nfe4 {[%emt 0:00:57]} 16. Nxe4 {[%emt 0:00:04]} Nxe4 {[%emt 0:00:26]} 17. Qc2 {[%emt 0:00:03]} c6 {[%emt 0:06:49]} 18. Nd2 {[%emt 0:00:06]} Nf6 {[%emt 0:18:32]} 19. Nb3 {[%emt 0:00:04]} cxd5 {[%emt 0:04:34]} 20. cxd5 {[%emt 0:00:03]} Bd7 {[%emt 0:01:41]} 21. Qd2 {[%emt 0:10:31]} a5 {[%emt 0:04:35]} 22. Kb1 {[%emt 0:25:52]} a4 {[%emt 0:10:40]} 23. Na5 {[%emt 0:10:56]} Bb5 {[%emt 0:06:18]} 24. Nc4 {[%emt 0:02:00]} Ne4 {[%emt 0:00:13]} 25. Qb4 {[%emt 0:01:31]} a3 {[%emt 0:05:00]} 26. b3 {[%emt 0:02:00]} Rc8 {[%emt 0:01:26]} 27. Bb6 {[%emt 0:05:08]} Bxc4 {[%emt 0:11:18]} 28. Bxc4 {[%emt 0:01:51]} Nc5 {[%emt 0:00:42]} 29. Bxc5 {[%emt 0:07:20]} Rxc5 {[%emt 0:00:17]} 30. Qb6 {[%emt 0:00:05]} Qg6 {[%emt 0:02:57]} 31. Qxb7 {[%emt 0:13:54]} f4+ {[%emt 0:03:34]} 32. Kc1 {[%emt 0:00:00]} fxg3 {[%emt 0:03:09]} 33. Qe7 {[%emt 0:00:00]} Bf6 {[%emt 0:05:32]} 34. Qe6+ {[%emt 0:00:00]} Kh8 {[%emt 0:00:01]} 35. h4 {[%emt 0:00:04]} gxf2 {[%emt 0:02:01]} 36. Rhf1 {[%emt 0:00:50]} Qg3 {[%emt 0:01:13]} 37. Rd2 {[%emt 0:01:04]} Bg7 {[%emt 0:02:28]} 38. Qxd6 {[%emt 0:00:15]} Qe3 {[%emt 0:01:59]} 39. Kd1 {[%emt 0:01:11]} Rcc8 {[%emt 0:01:14]} 40. Qxa3 {[%emt 0:00:33]} Rxc4 {[%emt 0:00:25]} 41. d6 {[%emt 0:00:31]} Rd4 {[%emt 0:00:17]} 42. Qc1 {[%emt 0:00:30]} Rd8 {[%emt 0:00:41]} 43. Rxd4 {[%emt 0:00:24]} exd4 {[%emt 0:01:15]} 44. Qxe3 {[%emt 0:00:30]} dxe3 {[%emt 0:00:00]} 45. Ke2 {[%emt 0:00:00]} Bd4 {[%emt 0:00:00] Ke1 [%clk 0:00:00]} 0-1

[Event "VII Lorca Open 2018"]
[Site "Lorca"]
[Date "2018.12.28"]
[Round "4"]
[White "Kovacevic, Slobodan"]
[Black "Plaskett, H James"]
[Result "1/2-1/2"]
[ECO "D02"]
[WhiteElo "2245"]
[BlackElo "2454"]
[Annotator "ChessBase"]
[PlyCount "45"]
[EventDate "2018.12.26"]
[EventType "swiss"]
[EventCountry "ESP"]
[SourceTitle "playchess.com"]
[Source "ChessBase"]
[SourceQuality "1"]
[TimeControl "5400+30"]

1. d4 {[%emt 0:01:14]} Nf6 {[%emt 0:00:54]} 2. Nf3 {[%emt 0:01:19]} d5 {[%emt 0:00:16]} 3. Bf4 {[%emt 0:00:22]} e6 {[%emt 0:00:46]} 4. Nbd2 {[%emt 0:00:21]} c5 {[%emt 0:01:37]} 5. e3 {[%emt 0:00:06]} Nc6 {[%emt 0:00:08]} 6. c3 {[%emt 0:00:15]} Bd6 {[%emt 0:00:18]} 7. Bg3 {[%emt 0:01:17]} O-O {[%emt 0:02:40]} 8. Bd3 {[%emt 0:02:19]} b6 {[%emt 0:01:36]} 9. Ne5 {[%emt 0:06:48]} Bb7 {[%emt 0:01:37]} 10. f4 {[%emt 0:00:16]} Ne8 {[%emt 0:15:52]} 11. O-O {[%emt 0:07:53]} Ne7 {[%emt 0:02:30]} 12. Qg4 {[%emt 0:10:03]} f5 {[%emt 0:08:08]} 13. Qh3 {[%emt 0:01:29]} Nf6 {[%emt 0:05:53]} 14. Bh4 {[%emt 0:02:37]} Qe8 {[%emt 0:05:48]} 15. Be2 {[%emt 0:07:01]} Rc8 {[%emt 0:03:35]} 16. Ndf3 {[%emt 0:02:15]} Ne4 {[%emt 0:03:48]} 17. Ng5 {[%emt 0:03:42]} Nxg5 {[%emt 0:14:01]} 18. Bxg5 {[%emt 0:00:56]} Rc7 {[%emt 0:06:00]} 19. a4 {[%emt 0:04:53]} a5 {[%emt 0:03:47]} 20. Bb5 {[%emt 0:01:23]} Qc8 {[%emt 0:00:14]} 21. Bxe7 {[%emt 0:00:36]} Rxe7 {[%emt 0:00:25]} 22. Qf3 {[%emt 0:00:43]} Bxe5 {[%emt 0:10:50]} 23. Be2 {[%emt 0:43:42]} 1/2-1/2

[Event "VII Lorca Open 2018"]
[Site "Lorca"]
[Date "2018.12.28"]
[Round "4"]
[White "Bharath Subramaniyam H"]
[Black "Alshameary Puente, Ismael"]
[Result "1-0"]
[ECO "C77"]
[WhiteElo "2234"]
[BlackElo "2444"]
[Annotator "ChessBase"]
[PlyCount "91"]
[EventDate "2018.12.26"]
[EventType "swiss"]
[EventCountry "ESP"]
[SourceTitle "playchess.com"]
[Source "ChessBase"]
[SourceQuality "1"]
[TimeControl "5400+30"]

1. e4 {[%emt 0:00:00]} e5 {[%emt 0:00:48]} 2. Nf3 {[%emt 0:00:00]} Nc6 {[%emt 0:00:05]} 3. Bb5 {[%emt 0:00:03]} a6 {[%emt 0:00:06]} 4. Ba4 {[%emt 0:00:07]} Nf6 {[%emt 0:00:07]} 5. Qe2 {[%emt 0:00:08]} b5 {[%emt 0:00:36]} 6. Bb3 {[%emt 0:00:02]} Bc5 {[%emt 0:00:13]} 7. c3 {[%emt 0:00:33]} O-O {[%emt 0:00:53]} 8. d3 {[%emt 0:00:17]} Re8 {[%emt 0:05:57]} 9. h3 {[%emt 0:03:35]} d5 {[%emt 0:04:21]} 10. O-O {[%emt 0:03:41]} h6 {[%emt 0:01:03]} 11. Nbd2 {[%emt 0:03:48]} Be6 {[%emt 0:09:44]} 12. Rd1 {[%emt 0:10:10]} Qd7 {[%emt 0:16:15]} 13. Nf1 {[%emt 0:05:32]} d4 {[%emt 0:01:22]} 14. Ng3 {[%emt 0:04:58]} a5 {[%emt 0:01:48]} 15. Bxe6 {[%emt 0:08:51]} Rxe6 {[%emt 0:00:23]} 16. cxd4 {[%emt 0:05:54]} Nxd4 {[%emt 0:05:08]} 17. Nxd4 {[%emt 0:00:28]} Bxd4 {[%emt 0:00:21]} 18. Nf5 {[%emt 0:01:09]} a4 {[%emt 0:02:05]} 19. Be3 {[%emt 0:02:57]} c5 {[%emt 0:02:12]} 20. Rac1 {[%emt 0:02:28]} Rc8 {[%emt 0:01:00]} 21. Rc2 {[%emt 0:10:21]} Kh7 {[%emt 0:00:47]} 22. Rdc1 {[%emt 0:02:40]} Rec6 {[%emt 0:01:45]} 23. Qf3 {[%emt 0:01:22]} Qe6 {[%emt 0:10:53]} 24. a3 {[%emt 0:10:11]} Ng8 {[%emt 0:01:53]} 25. Qg4 {[%emt 0:01:46]} g6 {[%emt 0:05:24]} 26. Nxd4 {[%emt 0:01:37]} Qxg4 {[%emt 0:02:41]} 27. hxg4 {[%emt 0:00:09]} exd4 {[%emt 0:00:07]} 28. Bxd4 {[%emt 0:00:07]} Rd6 {[%emt 0:00:12]} 29. Bxc5 {[%emt 0:00:31]} Rxd3 {[%emt 0:00:08]} 30. Bb4 {[%emt 0:01:10]} Rxc2 {[%emt 0:09:00]} 31. Rxc2 {[%emt 0:00:01]} Nf6 {[%emt 0:00:55]} 32. f3 {[%emt 0:00:09]} Nd7 {[%emt 0:00:21]} 33. Rc7 {[%emt 0:01:24]} g5 {[%emt 0:04:38]} 34. Rb7 {[%emt 0:00:39]} Kg6 {[%emt 0:00:19]} 35. Rxb5 {[%emt 0:00:28]} f6 {[%emt 0:03:27]} 36. Bc3 {[%emt 0:01:52]} Rd6 {[%emt 0:01:36]} 37. Kf2 {[%emt 0:00:49]} Kf7 {[%emt 0:00:47]} 38. Ke3 {[%emt 0:01:19]} Ke6 {[%emt 0:00:14]} 39. Rb4 {[%emt 0:01:52]} Ra6 {[%emt 0:00:54]} 40. g3 {[%emt 0:00:23]} Kd6 {[%emt 0:01:59]} 41. f4 {[%emt 0:00:28]} Kc6 {[%emt 0:00:19]} 42. Rc4+ {[%emt 0:00:47]} Kb5 {[%emt 0:01:01]} 43. Rc7 {[%emt 0:01:40]} Rd6 {[%emt 0:01:08]} 44. Bd4 {[%emt 0:00:58]} Nf8 {[%emt 0:00:45]} 45. Rf7 {[%emt 0:02:00]} Nd7 {[%emt 0:02:15]} 46. e5 {[%emt 0:00:31]} 1-0

[Event "VII Lorca Open 2018"]
[Site "Lorca"]
[Date "2018.12.28"]
[Round "4"]
[White "Aguilera Lopez, Alejandro"]
[Black "Sabuk, Piotr"]
[Result "0-1"]
[ECO "D03"]
[WhiteElo "2198"]
[BlackElo "2391"]
[Annotator "NA"]
[PlyCount "82"]
[EventDate "2018.12.26"]
[EventType "swiss"]
[EventCountry "ESP"]
[SourceTitle "playchess.com"]
[Source "ChessBase"]
[SourceQuality "1"]
[TimeControl "5400+30"]

1. d4 {[%emt 0:00:00]} d5 {[%emt 0:00:00]} 2. Nf3 {[%emt 0:00:00]} Nf6 {[%emt 0:00:00]} 3. Bg5 {[%emt 0:00:51]} Ne4 {[%emt 0:02:04]} 4. Bh4 {[%emt 0:00:48]} c5 {[%emt 0:02:05]} 5. e3 {[%emt 0:00:32]} Qb6 {[%emt 0:01:49]} 6. c4 {[%emt 0:11:45]} Qxb2 {[%emt 0:06:50]} 7. Nbd2 {[%emt 0:02:18]} Nc3 {[%emt 0:05:05]} 8. Qc1 {[%emt 0:00:39]} Qxc1+ {[%emt 0:00:55]} 9. Rxc1 {[%emt 0:00:07]} Nxa2 {[%emt 0:00:34]} 10. Rb1 {[%emt 0:02:37]} e6 {[%emt 0:02:01]} 11. cxd5 {[%emt 0:02:05]} exd5 {[%emt 0:06:54]} 12. Bb5+ {[%emt 0:02:05]} Nc6 {[%emt 0:04:50]} 13. Ne5 {[%emt 0:04:25]} Nc3 {[%emt 0:04:09]} 14. Bxc6+ {[%emt 0:02:09]} bxc6 {[%emt 0:00:08]} 15. Rb3 {[%emt 0:00:09]} Nb5 {[%emt 0:07:16]} 16. Nxc6 {[%emt 0:02:48]} a6 {[%emt 0:01:23]} 17. dxc5 {[%emt 0:05:04]} Bxc5 {[%emt 0:01:30]} 18. O-O {[%emt 0:00:19]} Bd7 {[%emt 0:01:02]} 19. Ne5 {[%emt 0:02:30]} Be6 {[%emt 0:00:30]} 20. Rc1 {[%emt 0:06:16]} Bd6 {[%emt 0:02:54]} 21. Ndf3 {[%emt 0:01:05]} d4 {[%emt 0:02:41]} 22. Rd3 {[%emt 0:01:19]} dxe3 {[%emt 0:00:47]} 23. Rxe3 {[%emt 0:06:45]} O-O {[%emt 0:00:56]} 24. Ng5 {[%emt 0:01:34]} Bd5 {[%emt 0:03:20]} 25. Rd1 {[%emt 0:01:43]} Bb7 {[%emt 0:02:19]} 26. Ngxf7 {[%emt 0:02:54]} Rxf7 {[%emt 0:19:02]} 27. Nxf7 {[%emt 0:01:36]} Kxf7 {[%emt 0:01:17]} 28. Bg3 {[%emt 0:00:32]} Bxg3 {[%emt 0:04:58]} 29. Rd7+ {[%emt 0:00:21]} Kf6 {[%emt 0:00:11]} 30. Rxg3 {[%emt 0:01:27]} Be4 {[%emt 0:00:40]} 31. Rgxg7 {[%emt 0:03:23]} Bg6 {[%emt 0:01:30]} 32. h4 {[%emt 0:03:43]} a5 {[%emt 0:02:12]} 33. h5 {[%emt 0:03:39]} Be8 {[%emt 0:02:29]} 34. Rb7 {[%emt 0:02:44]} a4 {[%emt 0:00:38]} 35. Rg8 {[%emt 0:07:17]} Nc3 {[%emt 0:07:02]} 36. Rf8+ {[%emt 0:02:51]} Ke6 {[%emt 0:00:43]} 37. Rc7 {[%emt 0:01:16]} Ne2+ {[%emt 0:02:03]} 38. Kh2 {[%emt 0:02:15]} a3 {[%emt 0:02:16]} 39. Rc2 {[%emt 0:01:07]} Nd4 {[%emt 0:01:00]} 40. Rd2 {[%emt 0:02:02]} Ke7 {[%emt 0:00:57]} 41. Rf4 {[%emt 0:01:35]} Ne6 {[%emt 0:00:35]} 0-1

[Event "VII Lorca Open 2018"]
[Site "Lorca"]
[Date "2018.12.28"]
[Round "4"]
[White "Sanchez Jerez, Emilio Miguel"]
[Black "Mingarro Carceller, Sergi"]
[Result "1-0"]
[ECO "B23"]
[WhiteElo "2193"]
[BlackElo "2361"]
[Annotator "NA"]
[PlyCount "51"]
[EventDate "2018.12.26"]
[EventType "swiss"]
[EventCountry "ESP"]
[SourceTitle "playchess.com"]
[Source "ChessBase"]
[SourceQuality "1"]
[TimeControl "5400+30"]

1. e4 {[%emt 0:02:36]} c5 {[%emt 0:00:00]} 2. Nc3 {[%emt 0:00:13]} d6 {[%emt 0:00:00]} 3. f4 {[%emt 0:00:22]} Nc6 {[%emt 0:04:11]} 4. Nf3 {[%emt 0:00:14]} g6 {[%emt 0:00:19]} 5. Bb5 {[%emt 0:00:05]} Bd7 {[%emt 0:01:16]} 6. O-O {[%emt 0:00:17]} Bg7 {[%emt 0:01:35]} 7. d3 {[%emt 0:00:13]} Nf6 {[%emt 0:02:57]} 8. Bxc6 {[%emt 0:04:41]} Bxc6 {[%emt 0:08:39]} 9. Qe1 {[%emt 0:00:15]} Nd7 {[%emt 0:07:51]} 10. f5 {[%emt 0:06:40]} Ne5 {[%emt 0:08:20]} 11. Nxe5 {[%emt 0:23:07]} Bxe5 {[%emt 0:00:20]} 12. Bf4 {[%emt 0:01:33]} Bg7 {[%emt 0:12:38]} 13. Kh1 {[%emt 0:11:23]} gxf5 {[%emt 0:11:46]} 14. exf5 {[%emt 0:08:48]} Bxc3 {[%emt 0:01:22]} 15. Qxc3 {[%emt 0:05:03]} Rg8 {[%emt 0:00:15]} 16. Bg3 {[%emt 0:00:53]} h5 {[%emt 0:04:07]} 17. Qc4 {[%emt 0:03:24]} Qd7 {[%emt 0:05:43]} 18. Qh4 {[%emt 0:00:53]} O-O-O {[%emt 0:01:02]} 19. Qxh5 {[%emt 0:00:44]} Rh8 {[%emt 0:03:39]} 20. Qxf7 {[%emt 0:02:25]} Rdg8 {[%emt 0:00:14]} 21. Kg1 {[%emt 0:02:10]} Rg5 {[%emt 0:03:15]} 22. Rae1 {[%emt 0:05:28]} Kd8 {[%emt 0:03:47]} 23. Rf2 {[%emt 0:04:36]} Rhg8 {[%emt 0:04:01]} 24. c4 {[%emt 0:03:17]} R5g7 {[%emt 0:00:48]} 25. Qe6 {[%emt 0:00:31]} Rf8 {[%emt 0:01:56]} 26. f6 {[%emt 0:13:09]} 1-0

[Event "VII Lorca Open 2018"]
[Site "Lorca"]
[Date "2018.12.28"]
[Round "4"]
[White "Natarajan C"]
[Black "Valmana Canto, Jaime"]
[Result "0-1"]
[ECO "C41"]
[WhiteElo "2177"]
[BlackElo "2359"]
[Annotator "NA"]
[PlyCount "98"]
[EventDate "2018.12.26"]
[EventType "swiss"]
[EventCountry "ESP"]
[SourceTitle "playchess.com"]
[Source "ChessBase"]
[SourceQuality "1"]
[TimeControl "5400+30"]

1. d4 {[%emt 0:00:00]} Nf6 {[%emt 0:02:52]} 2. Nf3 {[%emt 0:00:00]} d6 {[%emt 0:00:23]} 3. Nc3 {[%emt 0:00:13]} Nbd7 {[%emt 0:00:14]} 4. e4 {[%emt 0:00:38]} e5 {[%emt 0:00:07]} 5. Bc4 {[%emt 0:04:56]} Be7 {[%emt 0:00:10]} 6. Ng5 {[%emt 0:05:44]} O-O {[%emt 0:01:02]} 7. f4 {[%emt 0:00:42]} exf4 {[%emt 0:25:39]} 8. Bxf7+ {[%emt 0:11:29]} Rxf7 {[%emt 0:00:20]} 9. Ne6 {[%emt 0:00:07]} Qe8 {[%emt 0:00:05]} 10. Nxc7 {[%emt 0:00:03]} Qd8 {[%emt 0:00:22]} 11. Nxa8 {[%emt 0:00:06]} Nf8 {[%emt 0:00:23]} 12. O-O {[%emt 0:01:03]} Bg4 {[%emt 0:00:19]} 13. Qd3 {[%emt 0:00:13]} Qxa8 {[%emt 0:00:15]} 14. Bxf4 {[%emt 0:00:13]} Qd8 {[%emt 0:06:31]} 15. Be3 {[%emt 0:08:47]} Be6 {[%emt 0:05:37]} 16. d5 {[%emt 0:07:02]} Bc8 {[%emt 0:00:46]} 17. Nb5 {[%emt 0:02:23]} a6 {[%emt 0:13:56]} 18. Na3 {[%emt 0:10:21]} N8d7 {[%emt 0:02:26]} 19. Nc4 {[%emt 0:02:28]} b5 {[%emt 0:00:16]} 20. Nd2 {[%emt 0:00:05]} Ne5 {[%emt 0:00:47]} 21. Qd4 {[%emt 0:00:12]} Nfg4 {[%emt 0:00:47]} 22. Rxf7 {[%emt 0:00:31]} Nxf7 {[%emt 0:00:34]} 23. c3 {[%emt 0:04:50]} Nfe5 {[%emt 0:08:40]} 24. Bf4 {[%emt 0:06:17]} Bf6 {[%emt 0:00:23]} 25. Qa7 {[%emt 0:02:25]} Nd3 {[%emt 0:04:41]} 26. Bg3 {[%emt 0:00:48]} Bg5 {[%emt 0:02:35]} 27. Nf1 {[%emt 0:00:09]} Nxb2 {[%emt 0:00:10]} 28. Rb1 {[%emt 0:00:37]} Nc4 {[%emt 0:01:21]} 29. h3 {[%emt 0:03:15]} Nf6 {[%emt 0:07:30]} 30. Re1 {[%emt 0:06:21]} Nh5 {[%emt 0:00:55]} 31. Bf2 {[%emt 0:01:26]} Nf4 {[%emt 0:00:48]} 32. Bd4 {[%emt 0:00:07]} Bf6 {[%emt 0:03:12]} 33. Qb8 {[%emt 0:07:45]} Bxd4+ {[%emt 0:01:41]} 34. cxd4 {[%emt 0:00:02]} Nxg2 {[%emt 0:00:10]} 35. Rb1 {[%emt 0:02:33]} Nf4 {[%emt 0:03:48]} 36. Kh2 {[%emt 0:00:56]} Nxh3 {[%emt 0:02:13]} 37. Ng3 {[%emt 0:00:10]} g6 {[%emt 0:01:50]} 38. Rf1 {[%emt 0:03:50]} Nd2 {[%emt 0:01:06]} 39. Rf6 {[%emt 0:02:34]} Qxf6 {[%emt 0:02:30]} 40. Qxc8+ {[%emt 0:00:04]} Kg7 {[%emt 0:00:06]} 41. Qd7+ {[%emt 0:00:16]} Qf7 {[%emt 0:01:17]} 42. Qxh3 {[%emt 0:01:15]} Nf3+ {[%emt 0:01:11]} 43. Kg2 {[%emt 0:01:38]} Nxd4 {[%emt 0:00:41]} 44. Qg4 {[%emt 0:00:13]} Qc7 {[%emt 0:00:46]} 45. Qg5 {[%emt 0:01:51]} Kf7 {[%emt 0:00:25]} 46. Qf4+ {[%emt 0:01:37]} Kg7 {[%emt 0:00:24]} 47. Qg5 {[%emt 0:00:06]} Qc2+ {[%emt 0:00:18]} 48. Kf1 {[%emt 0:03:50]} Qb1+ {[%emt 0:00:21]} 49. Kf2 {[%emt 0:00:06]} Qxa2+ {[%emt 0:00:05] Qf4 [%clk 0:00:00]} 0-1

[Event "VII Lorca Open 2018"]
[Site "Lorca"]
[Date "2018.12.28"]
[Round "4"]
[White "Krug Cortegoso, Rodolfo Martin"]
[Black "Melero Fidalgo, Juan De Dios"]
[Result "0-1"]
[ECO "A14"]
[WhiteElo "2147"]
[BlackElo "2348"]
[Annotator "NA"]
[PlyCount "84"]
[EventDate "2018.12.26"]
[EventType "swiss"]
[EventCountry "ESP"]
[SourceTitle "playchess.com"]
[Source "ChessBase"]
[SourceQuality "1"]
[TimeControl "5400+30"]

1. Nf3 {[%emt 1:30:30]} Nf6 {[%emt 1:30:30]} 2. c4 {[%emt 0:00:30]} e6 {[%emt 0:00:30]} 3. g3 {[%emt 0:00:30]} d5 {[%emt 0:00:30]} 4. Bg2 {[%emt 0:00:30]} Be7 {[%emt 0:00:30]} 5. O-O {[%emt 0:00:30]} O-O {[%emt 0:00:30]} 6. b3 {[%emt 0:00:30]} a5 {[%emt 0:00:30]} 7. a3 {[%emt 0:00:30]} Nbd7 {[%emt 0:00:30]} 8. Bb2 {[%emt 0:00:30]} c6 {[%emt 0:00:30]} 9. Qc2 {[%emt 0:00:30]} Re8 {[%emt 0:00:30]} 10. d3 {[%emt 0:00:30]} dxc4 {[%emt 0:00:30]} 11. bxc4 {[%emt 0:00:30]} Qc7 {[%emt 0:00:30]} 12. d4 {[%emt 0:00:30]} Nf8 {[%emt 0:00:30]} 13. e4 {[%emt 0:00:30]} Ng6 {[%emt 0:00:30]} 14. e5 {[%emt 0:00:30]} Nd7 {[%emt 0:00:30]} 15. h4 {[%emt 0:00:30]} h6 {[%emt 0:00:30]} 16. Nbd2 {[%emt 0:00:30]} Ngf8 {[%emt 0:00:30]} 17. Ne4 {[%emt 0:00:30]} b6 {[%emt 0:00:30]} 18. Rfd1 {[%emt 0:00:30]} Ba6 {[%emt 0:00:30]} 19. Rac1 {[%emt 0:00:30]} Reb8 {[%emt 0:00:30]} 20. h5 {[%emt 0:00:30]} f5 {[%emt 0:00:30]} 21. exf6 {[%emt 0:00:30]} Nxf6 {[%emt 0:00:30]} 22. Ne5 {[%emt 0:00:30]} Bb7 {[%emt 0:00:30]} 23. c5 {[%emt 0:00:30]} b5 {[%emt 0:00:30]} 24. Qe2 {[%emt 0:00:30]} Re8 {[%emt 0:00:30]} 25. f4 {[%emt 0:00:30]} Nd5 {[%emt 0:00:30]} 26. Rf1 {[%emt 0:00:30]} b4 {[%emt 0:00:30]} 27. Rfe1 {[%emt 0:00:30]} Ba6 {[%emt 0:00:30]} 28. Qg4 {[%emt 0:00:30]} Rab8 {[%emt 0:00:30]} 29. a4 {[%emt 0:00:30]} b3 {[%emt 0:00:30]} 30. Nd6 {[%emt 0:00:30]} Bxd6 {[%emt 0:00:30]} 31. cxd6 {[%emt 0:00:30]} Qxd6 {[%emt 0:00:30]} 32. Rxc6 {[%emt 0:00:30]} Qb4 {[%emt 0:00:30]} 33. Rec1 {[%emt 0:00:30]} Bb7 {[%emt 0:00:30]} 34. Bxd5 {[%emt 0:00:30]} exd5 {[%emt 0:00:30]} 35. Rxh6 {[%emt 0:00:30]} Rbc8 {[%emt 0:00:30]} 36. Rd1 {[%emt 0:00:30]} Rc2 {[%emt 0:00:30]} 37. Rf6 {[%emt 0:00:30]} Bc8 {[%emt 0:00:30]} 38. f5 {[%emt 0:00:30]} Rxe5 {[%emt 0:00:30]} 39. Bc3 {[%emt 0:00:30]} Qxc3 {[%emt 0:00:30]} 40. dxe5 {[%emt 0:00:30]} Qe3+ {[%emt 0:00:30]} 41. Kh1 {[%emt 0:00:30]} Qf2 {[%emt 0:00:30]} 42. Rxf8+ {[%emt 0:00:30]} Kxf8 {[%emt 0:00:30]} 0-1

[Event "VII Lorca Open 2018"]
[Site "Lorca"]
[Date "2018.12.28"]
[Round "4"]
[White "Ajay Karthikeyan"]
[Black "Franco Ocampos, Zenon"]
[Result "0-1"]
[ECO "D00"]
[WhiteElo "2143"]
[BlackElo "2477"]
[Annotator "ChessBase"]
[PlyCount "114"]
[EventDate "2018.12.26"]
[EventType "swiss"]
[EventCountry "ESP"]
[SourceTitle "playchess.com"]
[Source "ChessBase"]
[SourceQuality "1"]
[TimeControl "5400+30"]

1. d4 {[%emt 0:06:22]} Nf6 {[%emt 0:00:00]} 2. Bf4 {[%emt 0:00:41]} d5 {[%emt 0:00:24]} 3. e3 {[%emt 0:00:11]} c5 {[%emt 0:00:32]} 4. c3 {[%emt 0:00:01]} Nc6 {[%emt 0:00:28]} 5. Nd2 {[%emt 0:00:05]} Qb6 {[%emt 0:03:50]} 6. Qb3 {[%emt 0:00:19]} c4 {[%emt 0:00:33]} 7. Qc2 {[%emt 0:00:09]} g6 {[%emt 0:03:15]} 8. e4 {[%emt 0:01:12]} Nxe4 {[%emt 0:01:44]} 9. Nxe4 {[%emt 0:00:24]} dxe4 {[%emt 0:00:05]} 10. Bxc4 {[%emt 0:01:11]} Bg7 {[%emt 0:01:35]} 11. Be3 {[%emt 0:02:54]} Na5 {[%emt 0:01:36]} 12. d5 {[%emt 0:01:42]} Qc7 {[%emt 0:00:47]} 13. Bb5+ {[%emt 0:01:39]} Kf8 {[%emt 0:01:01]} 14. Ne2 {[%emt 0:07:00]} a6 {[%emt 0:03:21]} 15. Ba4 {[%emt 0:00:26]} Nc4 {[%emt 0:02:07]} 16. O-O {[%emt 0:02:19]} f5 {[%emt 0:07:46]} 17. Bb3 {[%emt 0:06:56]} Bd7 {[%emt 0:01:47]} 18. Bxc4 {[%emt 0:06:13]} Qxc4 {[%emt 0:02:05]} 19. Rfd1 {[%emt 0:00:45]} Be5 {[%emt 0:07:59]} 20. b3 {[%emt 0:02:27]} Qc7 {[%emt 0:00:05]} 21. g3 {[%emt 0:00:27]} Kf7 {[%emt 0:06:06]} 22. Rac1 {[%emt 0:00:37]} h6 {[%emt 0:10:03]} 23. c4 {[%emt 0:02:40]} g5 {[%emt 0:00:04]} 24. c5 {[%emt 0:01:19]} f4 {[%emt 0:03:18]} 25. Qxe4 {[%emt 0:07:49]} fxe3 {[%emt 0:01:24]} 26. fxe3 {[%emt 0:00:38]} Bf6 {[%emt 0:01:06]} 27. Rf1 {[%emt 0:14:31]} Rae8 {[%emt 0:06:33]} 28. Nd4 {[%emt 0:03:41]} Kg7 {[%emt 0:01:09]} 29. c6 {[%emt 0:00:44]} bxc6 {[%emt 0:02:14]} 30. Rxc6 {[%emt 0:00:21]} Qe5 {[%emt 0:00:49]} 31. Ne6+ {[%emt 0:00:31]} Bxe6 {[%emt 0:01:14]} 32. Qxe5 {[%emt 0:00:10]} Bxe5 {[%emt 0:00:04]} 33. dxe6 {[%emt 0:01:17]} Bf6 {[%emt 0:03:51]} 34. Rxa6 {[%emt 0:01:18]} Ra8 {[%emt 0:00:57]} 35. Rxa8 {[%emt 0:00:07]} Rxa8 {[%emt 0:00:01]} 36. a4 {[%emt 0:00:18]} Rb8 {[%emt 0:01:48]} 37. Rb1 {[%emt 0:00:15]} Bc3 {[%emt 0:00:06]} 38. Kf2 {[%emt 0:01:03]} Kf6 {[%emt 0:00:05]} 39. Ke2 {[%emt 0:00:17]} Bb4 {[%emt 0:00:27]} 40. Kd3 {[%emt 0:03:07]} Rc8 {[%emt 0:01:46]} 41. Ke4 {[%emt 0:05:20]} Kxe6 {[%emt 0:00:08]} 42. g4 {[%emt 0:09:04]} Rc3 {[%emt 0:06:53]} 43. Kd4 {[%emt 0:00:17]} Kd6 {[%emt 0:01:13]} 44. a5 {[%emt 0:04:11]} e5+ {[%emt 0:00:32]} 45. Ke4 {[%emt 0:00:03]} Ke6 {[%emt 0:02:11]} 46. a6 {[%emt 0:02:31]} Bc5 {[%emt 0:00:06]} 47. Kf3 {[%emt 0:00:14]} Rxe3+ {[%emt 0:00:11]} 48. Kg2 {[%emt 0:00:12]} Re2+ {[%emt 0:03:37]} 49. Kf3 {[%emt 0:00:36]} Ra2 {[%emt 0:00:21]} 50. b4 {[%emt 0:00:02]} Bd4 {[%emt 0:00:15]} 51. b5 {[%emt 0:00:29]} Kd5 {[%emt 0:00:11]} 52. Kg3 {[%emt 0:04:17]} e4 {[%emt 0:00:16]} 53. Kh3 {[%emt 0:00:02]} Be5 {[%emt 0:01:51]} 54. Rd1+ {[%emt 0:00:08]} Kc5 {[%emt 0:00:42]} 55. Rc1+ {[%emt 0:00:02]} Kxb5 {[%emt 0:00:11]} 56. Rb1+ {[%emt 0:00:01]} Kc5 {[%emt 0:00:13]} 57. Rh1 {[%emt 0:00:11]} Ra3+ {[%emt 0:00:05]} 0-1